bitfinex-derivatives/quotes_BNBF0:USTF0_20250521
["timestamp","ask_amount","ask_price","bid_price","bid_amount"]
[1747801126048,2.24785848,663.31,662.03,1.75450095]
[1747801126253,2.24785848,663.31,662.04,0.60924846]
[1747801126448,2.24785848,663.31,662.05,0.60924846]
[1747801126655,2.24785848,663.31,662.06,0.60924846]
[1747801126949,0.26260683,663.3,662.07,1.75460342]
[1747801127154,0.26260683,663.3,662.08,0.60935093]
[1747801127454,2.24785848,663.19,662.09,0.60935093]
[1747801127654,2.24785848,663.19,662.1,0.60935093]
[1747801127854,2.24785848,663.19,662.11,0.60935093]
[1747801128054,2.24785848,663.19,662.12,0.60935093]
[1747801128252,2.24785848,663.19,662.13,0.60935093]
[1747801128449,2.24785848,663.19,662.14,1.75460342]
[1747801128654,2.24785848,663.19,662.15,0.60935093]
[1747801128954,1.09,663.18,662.16,0.60935093]
[1747801129153,1.09,663.18,662.17,1.75460342]
[1747801129354,1.09,663.18,662.18,0.60935093]
[1747801129555,1.09,663.18,662.19,0.60935093]
[1747801129856,1.09,663.18,662.2,1.75485311]
[1747801130049,1.09,663.18,662.21,1.75485311]
[1747801130253,1.09,663.18,662.22,0.60960062]
[1747801130449,1.09,663.18,662.23,0.60960062]
[1747801130655,1.09,663.18,662.24,0.6096515]
[1747801130854,1.09,663.18,662.25,0.6096515]
[1747801131048,1.09,663.18,662.26,0.6096515]
[1747801131252,1.09,663.18,661.9,0.26259395]
[1747801131449,1.09,663.18,661.91,0.60972079]
[1747801131652,1.09,663.18,661.92,0.60972079]
[1747801131856,1.09,663.18,661.93,0.60972079]
[1747801132157,1.09,663.18,661.94,1.75599801]
[1747801132358,1.09,663.18,661.95,0.60972079]
[1747801132558,1.09,663.18,661.96,1.75599801]
[1747801132751,1.09,663.18,661.97,0.60972079]
[1747801132953,1.09,663.18,661.98,1.75599801]
[1747801133153,1.09,663.18,661.99,1.75599801]
[1747801133353,1.09,663.18,662.0,0.60972079]
[1747801133558,1.09,663.18,662.01,0.60972079]
[1747801133756,1.09,663.18,662.02,0.60972079]
[1747801133953,1.09,663.18,662.03,0.60979202]
[1747801134158,1.09,663.18,662.04,1.75606924]
[1747801134358,1.09,663.18,662.05,0.60979202]
[1747801134555,1.09,663.18,662.06,1.75606924]
[1747801134755,1.09,663.18,662.07,0.60979202]
[1747801134955,1.09,663.18,662.08,0.60979202]
[1747801135159,1.09,663.18,662.09,0.60979202]
[1747801135359,1.09,663.18,662.1,0.60979202]
[1747801135557,1.09,663.18,662.11,0.60979202]
[1747801135754,1.09,663.18,662.1,1.14627722]
[1747801135755,1.09,663.18,662.12,0.60967578]
[1747801135955,1.09,663.18,662.13,1.755953]
[1747801136157,1.09,663.18,662.14,0.60967578]
[1747801136358,1.09,663.18,662.15,1.755953]
[1747801136560,1.09,663.18,662.16,0.60967578]
[1747801136860,1.09,663.18,662.15,1.14627722]
[1747801136861,1.09,663.18,662.17,0.91163103]
[1747801137162,1.09,663.18,662.18,0.60967578]
[1747801137360,1.09,663.18,662.19,0.60968446]
[1747801137560,1.09,663.18,662.2,1.75596168]
[1747801137761,1.09,663.18,662.21,0.60968446]
[1747801137960,1.09,663.18,662.22,0.60968446]
[1747801138160,1.09,663.18,662.23,0.60968446]
[1747801138361,1.09,663.18,662.24,0.60968446]
[1747801138561,1.09,663.18,662.25,0.60968446]
[1747801138861,1.09,663.18,662.26,1.75596168]
[1747801139063,1.09,663.18,662.26,1.14627722]
[1747801139267,1.09,663.18,662.27,1.75631518]
[1747801139462,1.09,663.18,662.28,0.61003796]
[1747801139663,1.09,663.18,662.29,0.61003796]
[1747801139863,1.09,663.18,662.3,1.75631518]
[1747801140063,1.09,663.18,662.31,0.61003796]
[1747801140263,1.09,663.18,662.32,1.75631518]
[1747801140563,1.09,663.18,662.33,1.75631518]
[1747801140763,1.09,663.18,662.34,0.61003796]
[1747801140965,1.09,663.18,662.35,0.61003796]
[1747801141164,1.09,663.18,662.36,1.75631518]
[1747801141463,1.09,663.18,662.37,0.61003796]
[1747801141665,1.09,663.18,662.38,0.61003796]
[1747801141861,1.09,663.18,662.39,0.61003796]
[1747801142061,1.09,663.18,662.4,0.61044864]
[1747801142261,1.09,663.18,662.41,1.75672586]
[1747801142463,1.09,663.18,662.42,1.75672586]
[1747801142664,1.09,663.18,662.43,0.61044864]
[1747801142858,1.09,663.18,662.44,0.61044864]
[1747801143061,1.09,663.18,662.45,0.61044864]
[1747801143262,1.09,663.18,662.46,0.61044864]
[1747801143464,1.09,663.18,662.47,1.75672586]
[1747801143665,1.09,663.18,662.48,0.61014035]
[1747801143866,1.09,663.18,662.49,1.75641757]
[1747801144065,1.09,663.18,662.5,0.61014035]
[1747801144372,1.09,663.18,662.51,1.75641757]
[1747801144665,1.09,663.18,662.52,0.61014035]
[1747801144866,1.09,663.18,662.53,0.61014035]
[1747801145068,1.09,663.18,662.54,0.61014035]
[1747801145365,1.09,663.18,662.55,0.61007545]
[1747801145564,1.09,663.18,662.56,1.75635267]
[1747801145764,1.09,663.18,662.57,0.61007545]
[1747801145965,1.09,663.18,662.58,0.61007545]
[1747801146164,1.09,663.18,662.59,0.61007545]
[1747801146467,1.09,663.18,662.6,0.61007545]
[1747801146660,1.09,663.18,662.61,0.61007545]
[1747801146861,1.09,663.18,662.26,0.29042344]
[1747801147066,1.09,663.18,662.27,0.61011297]
[1747801147266,1.09,663.18,662.28,0.61011297]
[1747801147461,1.09,663.18,662.29,1.75735697]
[1747801147664,1.09,663.18,662.3,0.61011297]
[1747801147865,1.09,663.18,662.29,1.147244]
[1747801148065,1.09,663.18,662.26,0.29042344]
[1747801148567,1.09,663.18,662.27,0.61092064]
[1747801148767,1.09,663.18,662.28,0.61092064]
[1747801148969,1.09,663.18,662.26,0.29042344]
[1747801149369,1.09,663.18,661.86,0.26259494]
[1747801149572,1.09,663.18,661.87,0.61107283]
[1747801149871,1.09,663.18,661.88,0.61107283]
[1747801150073,1.09,663.18,661.89,0.61107283]
[1747801150372,1.09,663.18,661.9,1.76028796]
[1747801150572,1.09,663.18,661.91,0.61092411]
[1747801150765,1.09,663.18,661.92,0.61092411]
[1747801150965,1.09,663.18,661.93,1.76013924]
[1747801151165,1.09,663.18,661.94,0.91287095]
[1747801151370,1.09,663.18,661.95,1.76013924]
[1747801151570,1.09,663.18,661.96,0.61092411]
[1747801151768,1.09,663.18,661.97,1.76013924]
[1747801151967,1.09,663.18,661.98,0.61092411]
[1747801152171,1.09,663.18,661.94,0.30194684]
[1747801152172,1.09,663.18,661.99,1.76013924]
[1747801152372,1.09,663.18,662.0,0.61092411]
[1747801152667,1.09,663.18,662.01,1.76013924]
[1747801152872,1.09,663.18,662.02,1.76013924]
[1747801153181,1.09,663.18,662.03,0.61092411]
[1747801153469,1.09,663.18,662.04,0.61092411]
[1747801153672,1.09,663.18,662.05,0.61092411]
[1747801153868,1.09,663.18,662.06,1.76013924]
[1747801154073,1.09,663.18,662.07,0.61092411]
[1747801154273,1.09,663.18,662.08,0.61092411]
[1747801154573,1.09,663.18,662.09,1.76013924]
[1747801154874,1.09,663.18,662.1,1.76013924]
[1747801155073,1.09,663.18,662.11,0.61092411]
[1747801155270,1.09,663.18,662.12,0.61092411]
[1747801155470,1.09,663.18,662.13,0.61092411]
[1747801155671,1.09,663.18,662.14,0.61092411]
[1747801155872,2.24785848,663.08,662.15,0.61092411]
[1747801156072,2.24785848,663.08,662.16,0.61092411]
[1747801156271,2.24785848,663.08,662.17,1.76013924]
[1747801156468,2.24785848,663.08,662.18,0.61092411]
[1747801156669,2.24785848,663.08,662.17,1.14921513]
[1747801156670,2.24785848,663.08,662.19,0.61092411]
[1747801156873,2.24785848,663.08,662.2,1.76013924]
[1747801157073,2.24785848,663.08,662.21,0.61092411]
[1747801157274,2.24785848,663.08,662.22,2.06208608]
[1747801157573,2.24785848,663.08,662.23,0.61122575]
[1747801157768,2.24785848,663.08,662.24,0.61122575]
[1747801157970,2.24785848,663.08,662.25,1.76044088]
[1747801158173,2.24785848,663.08,662.26,0.61122575]
[1747801158373,2.24785848,663.08,662.27,1.76044088]
[1747801158674,2.24785848,663.08,662.28,1.76044088]
[1747801158875,2.24785848,663.08,662.29,0.61122575]
[1747801159075,2.24785848,663.08,662.03,0.29042344]
[1747801159076,2.24785848,663.08,662.3,0.61122575]
[1747801159276,2.24785848,663.0,662.31,0.61129076]
[1747801159470,2.24785848,663.0,662.32,0.61129076]
[1747801159670,2.24785848,663.0,662.04,0.29042344]
[1747801159872,2.24785848,663.0,662.05,0.61136504]
[1747801160073,2.24785848,663.0,662.06,1.76084852]
[1747801160275,2.24785848,663.0,662.07,0.61136504]
[1747801160475,2.24785848,663.0,662.08,0.61136504]
[1747801160674,2.24785848,663.0,662.09,0.61136504]
[1747801160877,2.24785848,663.0,662.1,1.14948348]
[1747801161077,2.24785848,663.0,662.11,0.61130653]
[1747801161278,2.24785848,663.0,662.12,0.61130653]
[1747801161472,2.24785848,663.0,662.13,0.61130653]
[1747801161675,2.24785848,663.0,662.14,0.61130653]
[1747801161872,0.843,662.99,662.15,0.61130653]
[1747801162073,0.843,662.99,662.16,0.61130653]
[1747801162372,0.843,662.99,662.17,0.61130653]
[1747801162577,3.09085848,662.99,662.18,1.76079001]
[1747801162778,3.09085848,662.99,662.19,0.611209]
[1747801162977,3.09085848,662.99,662.2,1.76069248]
[1747801163178,3.09085848,662.99,662.21,1.76069248]
[1747801163380,3.09085848,662.99,662.22,0.611209]
[1747801163574,3.09085848,662.99,662.23,0.611209]
[1747801163875,3.09085848,662.99,662.24,0.9131776]
[1747801164075,3.09085848,662.99,662.25,1.76069248]
[1747801164281,3.09085848,662.99,662.26,0.611209]
[1747801164475,3.09085848,662.99,662.27,0.611209]
[1747801164678,3.09085848,662.99,662.28,0.611209]
[1747801164875,3.09085848,662.99,662.29,0.611209]
[1747801165082,3.09085848,662.99,662.3,0.611209]
[1747801165275,3.09085848,662.99,662.24,0.3019686]
[1747801165474,0.843,662.99,662.25,0.61121041]
[1747801165679,0.843,662.99,662.26,0.61121041]
[1747801165875,0.843,662.99,661.95,0.29042344]
[1747801166079,0.843,662.99,661.96,0.61167571]
[1747801166281,0.843,662.99,661.97,0.61167571]
[1747801166580,0.843,662.99,661.98,2.06377009]
[1747801166777,0.843,662.99,661.99,0.61167571]
[1747801166978,0.843,662.99,662.0,0.61167571]
[1747801167276,0.843,662.99,662.01,0.61167571]
[1747801167475,0.843,662.99,662.02,0.61167571]
[1747801167680,0.843,662.99,662.03,0.61167571]
[1747801167974,0.843,662.99,661.98,0.30206546]
[1747801168179,0.843,662.99,661.99,0.61175238]
[1747801168381,2.24785848,662.69,662.0,0.61175238]
[1747801168576,2.24785848,662.69,661.72,0.29042344]
[1747801168881,2.24785848,662.69,661.73,1.76112136]
[1747801169082,2.24785848,662.69,661.74,1.76112136]
[1747801169280,2.24785848,662.69,661.75,0.61153003]
[1747801169477,2.24785848,662.69,661.76,0.61131242]
[1747801169781,2.24785848,662.69,661.77,1.76090375]
[1747801170082,2.24785848,662.69,661.78,1.76090375]
[1747801170281,2.24785848,662.69,661.79,0.61131242]
[1747801170480,2.24785848,662.69,661.8,0.61131242]
[1747801170681,3.09085848,662.99,661.81,0.61131242]
[1747801170880,3.09085848,662.99,661.8,0.30209274]
[1747801170881,3.09085848,662.99,661.82,0.61131242]
[1747801171075,3.09085848,662.99,661.83,1.76090375]
[1747801171276,3.09085848,662.99,661.84,0.61080767]
[1747801171575,3.09085848,662.99,661.85,1.760399]
[1747801171781,3.09085848,662.99,661.86,0.91290041]
[1747801171976,3.09085848,662.99,661.87,1.760399]
[1747801172175,3.09085848,662.99,661.88,0.61080767]
[1747801172377,3.09085848,662.99,661.89,0.61080767]
[1747801172580,3.09085848,662.99,661.9,1.760399]
[1747801172778,3.09085848,662.99,661.91,0.61080767]
[1747801172977,3.09085848,662.99,661.92,0.61071523]
[1747801173182,0.843,662.99,661.93,0.61071523]
[1747801173378,0.843,662.99,661.94,1.76030656]
[1747801173583,0.843,662.99,661.95,0.61071523]
[1747801173782,0.843,662.99,661.96,0.61071523]
[1747801173977,0.843,662.99,661.97,1.76030656]
[1747801174181,0.843,662.99,661.98,0.61071523]
[1747801174482,0.843,662.99,661.99,0.61071523]
[1747801174782,0.843,662.99,662.0,2.06189251]
[1747801174976,0.843,662.99,662.01,0.61020844]
[1747801175180,0.843,662.99,662.02,0.61020844]
[1747801175378,0.843,662.99,662.03,1.75979977]
[1747801175581,0.843,662.99,662.04,0.61020844]
[1747801175782,0.843,662.99,662.05,0.61020844]
[1747801175982,0.843,662.99,662.06,0.61020844]
[1747801176183,0.843,662.99,662.07,1.75979977]
[1747801176384,0.843,662.99,662.08,0.60995641]
[1747801176583,0.843,662.99,662.09,0.60995641]
[1747801176783,0.843,662.99,662.1,0.60995641]
[1747801176983,0.843,662.99,662.11,0.60995641]
[1747801177184,0.843,662.99,662.12,2.06164048]
[1747801177385,0.843,662.99,662.13,0.60995641]
[1747801177578,0.843,662.99,662.14,0.60995641]
[1747801177778,0.843,662.99,662.15,1.75954774]
[1747801177981,0.843,662.99,662.16,0.60995641]
[1747801178179,0.843,662.99,662.17,0.61003213]
[1747801178382,0.843,662.99,662.18,0.61003213]
[1747801178583,0.843,662.99,662.19,0.61003213]
[1747801178887,0.2626098,663.4,662.2,1.75962346]
[1747801179185,0.2626098,663.4,662.21,1.75962346]
[1747801179386,0.2626098,663.4,662.22,0.61003213]
[1747801179686,0.2626098,663.4,662.23,1.75962346]
[1747801179887,0.2626098,663.4,662.24,0.61006112]
[1747801180089,0.2626098,663.4,662.25,0.61006112]
[1747801180286,0.2626098,663.4,662.26,0.61006112]
[1747801180487,0.2626098,663.4,662.27,1.75965245]
[1747801180689,0.2626098,663.4,662.28,0.61006112]
[1747801180988,0.2626098,663.4,662.29,0.61006112]
[1747801181189,0.2626098,663.4,662.25,0.30209274]
[1747801181390,0.2626098,663.4,662.26,0.61046869]
[1747801181691,0.2626098,663.4,662.27,0.61047135]
[1747801181890,0.2626098,663.4,662.28,0.61047135]
[1747801182090,0.2626098,663.4,662.25,0.30209274]
[1747801182293,2.24785848,663.13,662.26,0.61051816]
[1747801182484,2.24785848,663.13,662.27,0.61051816]
[1747801182789,2.24785848,663.13,661.97,0.29042344]
[1747801182990,1.11,663.12,661.98,0.61048925]
[1747801183190,1.11,663.12,661.99,1.75765073]
[1747801183391,1.11,663.12,662.0,0.61048925]
[1747801183592,1.11,663.12,662.01,1.75765073]
[1747801183792,1.11,663.12,662.02,0.61048925]
[1747801183993,1.11,663.12,662.03,0.61048925]
[1747801184191,1.11,663.12,662.04,0.61048925]
[1747801184390,1.11,663.12,662.05,1.75765073]
[1747801184691,1.11,663.12,662.06,1.75765073]
[1747801184891,1.11,663.12,662.07,0.61048925]
[1747801185094,1.11,663.12,662.08,0.61048925]
[1747801185294,2.24785848,663.04,662.09,0.61048925]
[1747801185493,2.24785848,663.04,662.1,0.61048925]
[1747801185793,2.24785848,663.04,662.11,0.61048925]
[1747801185994,2.24785848,663.04,662.12,1.75765073]
[1747801186195,2.24785848,663.04,662.13,0.61048925]
[1747801186387,2.24785848,663.04,662.14,0.61048925]
[1747801186591,2.24785848,663.04,662.15,0.61048925]
[1747801186791,2.24785848,663.04,662.16,0.61067215]
[1747801186993,2.24785848,663.04,661.82,0.29042344]
[1747801187189,2.24785848,663.04,661.83,1.75799077]
[1747801187390,2.24785848,663.04,661.84,0.61067242]
[1747801187590,2.24785848,663.04,661.85,0.61067242]
[1747801187794,2.24785848,663.04,661.86,0.61067242]
[1747801187997,2.24785848,663.05,661.87,1.75799077]
[1747801188188,2.24785848,663.05,661.88,0.61067242]
[1747801188392,2.24785848,663.05,661.89,0.61067242]
[1747801188595,2.24785848,663.05,661.9,1.75793528]
[1747801188792,2.24785848,663.05,661.91,0.61061693]
[1747801188997,2.24785848,663.05,661.92,0.61061693]
[1747801189195,2.24785848,663.05,661.93,1.75793528]
[1747801189496,2.24785848,663.05,661.94,1.75793528]
[1747801189690,2.24785848,663.05,661.95,0.61061693]
[1747801189890,2.24785848,663.05,661.96,2.05993786]
[1747801190092,2.24785848,663.05,661.97,0.61062333]
[1747801190294,2.24785848,663.05,661.98,0.61060438]
[1747801190490,2.24785848,663.05,661.99,0.61060438]
[1747801190693,2.24785848,663.05,662.0,0.61060438]
[1747801190895,2.24785848,663.05,662.01,1.75792273]
[1747801191097,2.24785848,663.05,662.02,0.61060438]
[1747801191397,1.11,663.12,662.03,1.75792273]
[1747801191597,1.11,663.12,662.04,0.61060438]
[1747801191893,1.11,663.12,662.05,0.61060438]
[1747801192093,1.11,663.12,662.06,0.61052193]
[1747801192297,1.11,663.12,662.07,0.61052193]
[1747801192495,1.11,663.12,662.08,0.61052193]
[1747801192693,1.11,663.12,662.09,1.75784028]
[1747801192897,1.11,663.12,662.1,1.75784028]
[1747801193098,1.11,663.12,662.11,0.61052193]
[1747801193299,1.11,663.12,662.12,0.61052193]
[1747801193598,1.11,663.12,662.13,1.75784028]
[1747801193799,1.11,663.12,662.14,0.61032404]
[1747801194095,1.11,663.12,662.15,1.75764239]
[1747801194300,1.11,663.12,662.16,0.61032404]
[1747801194497,1.11,663.12,662.17,0.61032404]
[1747801194698,1.11,663.12,662.18,0.61032404]
[1747801194898,1.11,663.12,662.19,1.75764239]
[1747801195098,1.11,663.12,662.2,0.61032404]
[1747801195394,1.11,663.12,662.21,0.61032404]
[1747801195697,1.11,663.12,661.86,0.29042344]
[1747801195895,1.11,663.12,661.87,0.6103356]
[1747801196095,1.11,663.12,661.88,0.6103356]
[1747801196296,1.11,663.12,661.89,0.6103356]
[1747801196498,1.11,663.12,661.9,1.75644614]
[1747801196695,1.11,663.12,661.91,0.6103356]
[1747801196896,1.11,663.12,661.92,0.6103356]
[1747801197096,1.11,663.12,661.93,1.75644614]
[1747801197298,1.11,663.12,661.94,0.61016324]
[1747801197501,1.11,663.12,661.95,0.61016324]
[1747801197696,1.11,663.12,661.96,0.61016324]
[1747801198000,1.11,663.12,661.97,0.61016324]
[1747801198201,1.11,663.12,661.98,1.75627378]
[1747801198496,1.11,663.12,661.99,0.61016324]
[1747801198697,1.11,663.12,662.0,0.61016324]
[1747801198896,1.11,663.12,662.01,0.61016324]
[1747801199093,1.11,663.12,662.02,1.75649826]
[1747801199298,1.11,663.12,662.03,0.61038772]
[1747801199501,1.11,663.12,662.04,1.75649826]
[1747801199694,1.11,663.12,662.05,0.61038772]
[1747801199903,1.11,663.12,662.06,0.61038772]
[1747801200202,1.11,663.12,662.07,1.75649826]
[1747801200405,1.11,663.12,662.08,1.75649826]
[1747801200707,1.11,663.12,662.09,0.61016463]
[1747801200901,1.11,663.12,662.1,0.61016463]
[1747801201106,1.11,663.12,662.11,0.61016463]
[1747801201307,1.11,663.12,662.12,1.75627517]
[1747801201507,1.11,663.12,662.13,0.61016463]
[1747801201707,1.11,663.12,662.14,0.61016463]
[1747801202008,1.11,663.12,662.15,1.75627517]
[1747801202208,1.11,663.12,662.16,0.61016463]
[1747801202406,1.11,663.12,662.17,0.61016463]
[1747801202602,1.11,663.12,662.18,0.61016463]
[1747801202804,1.11,663.12,662.19,0.61016463]
[1747801203008,1.11,663.12,662.2,0.61016463]
[1747801203209,1.11,663.12,662.21,0.61016463]
[1747801203407,1.11,663.12,662.22,1.75627517]
[1747801203603,1.11,663.12,662.23,0.61016463]
[1747801203811,1.11,663.12,662.24,1.75627517]
[1747801204004,1.11,663.12,662.25,0.61016463]
[1747801204207,1.11,663.12,662.26,0.61016463]
[1747801204408,1.11,663.12,662.27,0.61016463]
[1747801204610,1.11,663.12,662.28,1.75627517]
[1747801204809,1.11,663.12,662.29,1.75627517]
[1747801205009,2.24785848,663.38,662.3,0.61016463]
[1747801205209,2.24785848,663.38,662.31,1.75636057]
[1747801205409,2.24785848,663.38,662.32,0.61025003]
[1747801205704,2.24785848,663.4,662.33,1.75636057]
[1747801205904,2.24785848,663.4,662.34,0.61025003]
[1747801206103,2.24785848,663.4,662.35,1.75636057]
[1747801206310,2.24785848,663.4,662.36,0.61025003]
[1747801206505,2.24785848,663.4,662.37,0.61025003]
[1747801206708,2.24785848,663.4,662.31,0.30192394]
[1747801206905,2.24785848,663.4,662.32,0.61062366]
[1747801207105,2.24785848,663.4,662.33,1.75829154]
[1747801207310,2.24785848,663.4,662.34,0.61087826]
[1747801207510,0.865,663.39,662.09,0.29042344]
[1747801207709,0.865,663.39,662.1,0.61093199]
[1747801207910,0.865,663.39,662.11,0.61093199]
[1747801208111,0.26261773,663.38,662.12,0.61093199]
[1747801208305,0.26261773,663.38,662.13,0.61093199]
[1747801208513,2.24785848,663.12,662.14,0.61095762]
[1747801208710,2.24785848,663.12,662.15,0.61095762]
[1747801208906,2.24785848,663.12,662.16,0.61095762]
[1747801209111,2.24785848,663.12,662.17,0.61095762]
[1747801209310,2.24785848,663.12,662.18,1.7598343]
[1747801209506,2.24785848,663.12,662.19,1.7598343]
[1747801209704,2.24785848,663.12,662.2,0.91289729]
[1747801209910,2.24785848,663.12,662.21,0.61095762]
[1747801210110,2.24785848,663.12,662.22,1.7598343]
[1747801210310,2.24785848,663.12,662.23,1.7598343]
[1747801210512,2.24785848,663.12,662.24,0.61095762]
[1747801210714,2.24785848,663.12,662.25,0.61095762]
[1747801211008,0.865,663.39,662.26,0.61095762]
[1747801211211,0.865,663.39,662.27,0.61095762]
[1747801211411,0.865,663.39,662.28,0.61095762]
[1747801211613,0.865,663.39,662.29,0.61095762]
[1747801211813,0.865,663.39,662.3,0.61095762]
[1747801212009,0.865,663.39,662.31,0.61061372]
[1747801212214,0.865,663.39,662.32,1.7594904]
[1747801212416,0.865,663.39,662.33,1.7594904]
[1747801212615,0.865,663.39,662.34,0.61061372]
[1747801212915,0.865,663.39,662.35,1.7594904]
[1747801213116,0.865,663.39,662.36,0.61061372]
[1747801213318,0.865,663.39,662.37,1.7594904]
[1747801213616,0.865,663.39,662.38,0.61061372]
[1747801213813,0.865,663.39,662.39,1.75938478]
[1747801214016,0.865,663.39,662.4,0.6105081]
[1747801214217,0.865,663.39,662.41,1.75938478]
[1747801214514,2.24785848,663.32,662.42,0.6105081]
[1747801214813,2.24785848,663.32,662.43,1.75938478]
[1747801215018,2.24785848,663.32,662.44,1.75938478]
[1747801215218,2.24785848,663.32,662.45,1.75938478]
[1747801215420,2.24785848,663.32,662.46,0.6105081]
[1747801215620,2.24785848,663.32,662.47,0.6105081]
[1747801215820,2.24785848,663.32,662.48,0.6105081]
[1747801216119,2.24785848,663.32,662.07,0.29042344]
[1747801216312,2.24785848,663.32,662.08,0.61021025]
[1747801216514,2.24785848,663.32,662.09,0.61021025]
[1747801216714,2.24785848,663.32,662.08,1.14731924]
[1747801216715,2.24785848,663.32,662.1,0.61021025]
[1747801216916,2.24785848,663.32,662.11,0.61021025]
[1747801217114,2.24785848,663.32,662.12,0.61021025]
[1747801217314,2.24785848,663.32,662.13,0.61021025]
[1747801217514,2.24785848,663.32,662.14,1.75752949]
[1747801217717,2.24785848,663.32,662.15,1.75752949]
[1747801217913,2.24785848,663.33,662.16,0.61021025]
[1747801218118,2.24785848,663.33,662.17,0.61021025]
[1747801218319,2.24785848,663.33,662.18,0.61021025]
[1747801218513,2.24785848,663.33,662.19,1.75752949]
[1747801218819,2.24785848,663.33,662.2,0.61021025]
[1747801219020,2.24785848,663.33,662.21,0.60972957]
[1747801219220,2.24785848,663.33,662.22,1.75704881]
[1747801219518,2.24785848,663.33,662.23,1.75704881]
[1747801219719,2.24785848,663.33,662.24,0.60972957]
[1747801219920,2.24785848,663.33,662.25,0.60972957]
[1747801220221,2.24785848,663.33,662.26,0.60972957]
[1747801220515,2.24785848,663.33,662.27,1.75704881]
[1747801220722,0.865,663.39,662.28,0.60958604]
[1747801220919,0.865,663.39,662.29,0.60958604]
[1747801221117,0.865,663.39,662.27,1.449179]
[1747801221118,0.865,663.39,662.3,1.75690528]
[1747801221318,0.865,663.39,662.31,0.60958604]
[1747801221514,0.865,663.39,662.32,0.60958604]
[1747801221716,0.865,663.39,662.33,0.60958604]
[1747801221917,0.865,663.39,662.34,0.60958604]
[1747801222119,0.865,663.39,662.35,1.75690528]
[1747801222319,0.865,663.39,662.36,0.60958604]
[1747801222620,0.865,663.39,662.37,1.75679646]
[1747801222820,0.865,663.39,662.38,1.75679646]
[1747801223019,0.865,663.39,662.39,0.60947722]
[1747801223221,0.865,663.39,662.4,1.75679646]
[1747801223414,0.865,663.39,662.41,0.60947722]
[1747801223618,0.865,663.39,662.42,0.60947722]
[1747801223819,0.865,663.39,662.43,1.75679646]
[1747801224019,0.865,663.39,662.44,0.60947722]
[1747801224222,0.865,663.39,662.45,1.75679646]
[1747801224417,0.865,663.39,662.46,0.91133698]
[1747801224618,0.865,663.39,662.47,1.75679646]
[1747801224819,0.865,663.39,662.48,0.60947722]
[1747801225015,0.865,663.39,662.49,1.75679646]
[1747801225219,0.865,663.39,662.5,0.60947722]
[1747801225424,0.865,663.39,662.51,1.75679646]
[1747801225619,0.865,663.39,662.52,0.60947722]
[1747801225817,0.865,663.39,662.53,1.75679646]
[1747801226022,0.865,663.39,662.54,0.60947722]
[1747801226217,0.865,663.39,662.55,0.60947722]
[1747801226425,0.865,663.39,662.56,1.75679646]
[1747801226725,2.24785848,663.79,662.57,1.75679646]
[1747801226921,2.24785848,663.79,662.58,0.60947722]
[1747801227120,2.24785848,663.79,662.59,1.75679646]
[1747801227420,2.24785848,663.79,662.6,0.60947722]
[1747801227720,2.24785848,663.79,662.61,0.60947722]
[1747801227927,2.24785848,663.79,662.62,0.60947722]
[1747801228120,2.24785848,663.79,662.61,1.14731924]
[1747801228121,2.24785848,663.79,662.63,1.75679646]
[1747801228325,2.24785848,663.79,662.64,0.60947722]
[1747801228519,2.24785848,663.79,662.65,1.75679646]
[1747801228723,2.24785848,663.79,662.66,0.60947722]
[1747801228918,2.24785848,663.88,662.67,0.60947722]
[1747801229126,0.26239891,663.81,662.68,0.60947722]
[1747801229325,0.26239891,663.81,662.69,0.60947722]
[1747801229627,0.821,663.8,662.7,1.75523273]
[1747801229826,0.821,663.8,662.71,0.60791349]
[1747801230027,0.821,663.8,662.72,0.60782227]
[1747801230228,0.821,663.8,662.73,0.60782227]
[1747801230427,0.821,663.8,662.74,0.60782227]
[1747801230623,0.821,663.8,662.75,1.75514151]
[1747801230828,0.821,663.8,662.73,0.30185976]
[1747801230829,0.821,663.8,662.76,1.75514151]
[1747801231028,0.821,663.8,662.77,0.60782227]
[1747801231223,0.821,663.8,662.78,0.60753069]
[1747801231427,0.821,663.8,662.79,0.60753069]